Cogmind - Beta 16 @@@ ROGUE MODE // 2026.01.19 @ 13:57:43 Player: Lunishko Result: Self-destructed Performance ------------- Evolutions (8) 4000 Regions Visited (15) 3000 Robots Destroyed (1) 5 Value Destroyed (15) 15 Prototype IDs (12) 240 Alien Tech Used (0) 0 Bonus (6029) 6029 TOTAL SCORE: 13289 Bonus ------- Pacifist 5672 Follower Combat Kills 57 Met Data Miner 300 Cogmind --------- Core Integrity 1123/1450 Matter 206/300 Energy 99/100 System Corruption 0% Temperature Cool (0) Movement Core (50) Location -2/Research Parts ------- > --- POWER (3) -------- (None) > --- PROPULSION (10) -- Improved Gyrokinetic Inverter > --- UTILITY (8) ------ (None) > --- WEAPON (2) ------- (None) > --- INVENTORY (5) ---- Experimental Power Amplifier Experimental Power Amplifier Advanced Cryofiber Web Enhanced Gauss Cannon Improved Plasma Cutter Peak State ------------ > --- POWER ------------ Improved Deuterium Engine Enhanced Nuclear Core Improved Fusion Compressor > --- PROPULSION ------- Gravmag Array Gravmag Array Improved Gyrokinetic Inverter > --- UTILITY ---------- Power Amplifier Enhanced Optical Array Advanced Signal Interpreter Advanced Transmission Jammer Shock Absorption System Remote Force Field System Shield Improved Recalibrator > --- WEAPON ----------- Enhanced Gauss Cannon > --- INVENTORY -------- Enhanced Gauss Cannon Improved Plasma Cutter [Rating: 91] Favorites ----------- Power Enhanced Nuclear Core Engine Light Ion Engine Power Core Enhanced Nuclear Core Propulsion Light Treads Treads Light Treads Wheel Compact Wheel Hover Unit Improved Gravmag System Flight Unit Cesium-ion Thruster Utility System Shield Device Power Amplifier Storage Small Storage Unit Processor Advanced Signal Interpreter Hackware System Shield Protection Hardened Medium Armor Plating Weapon Small Laser Energy Gun Small Laser Ballistic Gun Assault Rifle Ballistic Cannon Enhanced Gauss Cannon Launcher Grenade Launcher Build | -11 -10 -10 -10 -8 -7 -6 -6 -6 -5 -5 -4 -4 -4 -3 -2 ------- Run | Yrd Mat Min Sub Mat Fac Fac Low Dat Pro Fac Fac Upp Upp Res Res Slots Evolved 16 | . . . . 4 2 2 . . . 2 2 . . 2 2 Power 2 | . . . . . 1 . . . . 1 . . . . . Propulsion 8 | . . . . 1 . 1 . . . 1 1 . . 2 2 Utility 6 | . . . . 3 1 1 . . . . 1 . . . . Weapon . | . . . . . . . . . . . . . . . . Parts Attached 41 | 6 . . . 4 6 12 1 . . 4 7 . . . 1 Power 6 | 1 . . . 1 . 2 1 . . . 1 . . . . Engine 3 | 1 . . . 1 . . 1 . . . . . . . . Core 3 | . . . . . . 2 . . . . 1 . . . . Reactor . | . . . . . . . . . . . . . . . . Propulsion 12 | 2 . . . 2 2 3 . . . 2 1 . . . . Treads 2 | 2 . . . . . . . . . . . . . . . Leg . | . . . . . . . . . . . . . . . . Wheel 2 | . . . . 2 . . . . . . . . . . . Hover 6 | . . . . . . 3 . . . 2 1 . . . . Flight 2 | . . . . . 2 . . . . . . . . . . Utility 18 | 1 . . . . 4 6 . . . 2 4 . . . 1 Device 12 | . . . . . 3 3 . . . 2 3 . . . 1 Storage 1 | 1 . . . . . . . . . . . . . . . Processor 3 | . . . . . . 2 . . . . 1 . . . . Hackware 1 | . . . . . 1 . . . . . . . . . . Protection 1 | . . . . . . 1 . . . . . . . . . Artifact . | . . . . . . . . . . . . . . . . Weapon 5 | 2 . . . 1 . 1 . . . . 1 . . . . Energy Gun 2 | 2 . . . . . . . . . . . . . . . Energy Cannon . | . . . . . . . . . . . . . . . . Ballistic Gun 1 | . . . . 1 . . . . . . . . . . . Ballistic Cannon 1 | . . . . . . . . . . . 1 . . . . Launcher 1 | . . . . . . 1 . . . . . . . . . Special Weapon . | . . . . . . . . . . . . . . . . Impact Weapon . | . . . . . . . . . . . . . . . . Slashing Weapon . | . . . . . . . . . . . . . . . . Piercing Weapon . | . . . . . . . . . . . . . . . . Special Melee Weapon . | . . . . . . . . . . . . . . . . Unidentified Prototypes 2 | . . . . . . 1 . . . . . . . . 1 Parts Lost 34 | . . . . 6 2 9 . . 3 . . 5 . 7 2 Power 5 | . . . . 1 . 1 . . . . . 1 . 2 . Propulsion 11 | . . . . 3 1 4 . . 1 . . 1 . 1 . Utility 14 | . . . . . 1 3 . . 2 . . 3 . 3 2 Weapon 4 | . . . . 2 . 1 . . . . . . . 1 . Highest Loss Streak 8 | . . . . 6 2 8 . . 3 . . 5 . 6 2 To Critical Strikes . | . . . . . . . . . . . . . . . . Average Backups 2 | . 2 3 3 2 1 3 2 3 3 3 2 2 2 3 4 Power . | . 1 1 1 . . . . 1 1 1 . . . . . Propulsion . | . . . . . . . . . . . . . . . . Utility . | . . . . . . 1 1 1 1 . . . . 1 2 Weapon 1 | . 1 2 2 1 1 1 1 1 1 1 1 1 1 1 1 Tool/Special . | . . . . . . . . . . . . . . . . Unused Backups 6 | . . . . . . . . . . . . . . . 6 Power . | . . . . . . . . . . . . . . . . Propulsion . | . . . . . . . . . . . . . . . . Utility 4 | . . . . . . . . . . . . . . . 4 Weapon 1 | . . . . . . . . . . . . . . . 1 Tool/Special 1 | . . . . . . . . . . . . . . . 1 Average Slot Usage (%) 62 | . 85 85 85 45 41 77 43 40 31 29 68 77 52 28 12 Engine 5 | . 14 14 14 9 7 1 3 . . 2 5 4 . . . Core 4 | . . . . . . 9 6 6 2 2 7 10 10 3 . Treads 8 | . 28 28 28 10 . . . . . . . . . . . Hover 6 | . . . . . . 16 . . . 7 12 15 10 6 4 Flight 2 | . . . . . 7 7 6 6 4 . . . . . . Device 9 | . . . . . 4 19 13 13 9 4 24 25 15 6 . Storage 4 | . 14 14 14 9 5 . . . . . . . . . . Processor 3 | . . . . . . 5 6 6 6 5 7 10 5 4 4 Hackware 3 | . . . . . 3 6 6 6 6 5 5 5 5 4 3 Energy Gun 8 | . 28 28 28 10 . . . . . . . . . . . Peak Build Rating 91 | 6 6 6 6 6 26 59 26 23 23 50 91 91 61 61 27 Average Rating 31 | 5 6 6 6 4 11 47 23 23 17 33 80 90 61 33 17 On Entrance 25 | . 6 6 6 6 4 15 23 23 23 9 50 91 61 61 16 Avg Prop Armor Cover (%) 4 | . . . . . 5 3 . . . . . . . 4 5 Naked Turns . | . . . . . . . . . . . . . . . . Heaviest Build 48 | 11 11 11 11 12 13 31 10 10 10 27 48 48 34 34 . Greatest Support 52 | 40 40 40 40 40 16 30 5 5 5 40 52 52 32 32 3 Greatest Overweight (x) 3 | 1 . . . . . 3 1 1 1 . 1 1 1 1 . Average Overweight (x) . | . . . . . . . 1 1 . . . . 1 . . Largest Inventory Capacity 8 | 8 8 8 8 8 8 5 5 5 5 5 5 5 5 5 5 Average Capacity 6 | 7 8 8 8 8 7 5 5 5 5 5 5 5 5 5 5 Most Carried 5 | 2 3 3 3 5 4 5 3 3 4 5 4 2 3 3 5 Average Carried 2 | . 2 3 3 2 1 3 2 3 3 3 2 2 2 3 4 Final Capacity 8 | 8 8 8 8 8 5 5 5 5 5 5 5 5 5 5 5 Final Carried 5 | 2 3 3 3 1 3 3 3 3 4 4 2 2 3 3 5 Class Distribution -------------------- 100% | Mutant Dominant Class ---------------- Mutant | -10/Materials Mutant | -10/Mines Mutant | -10/Subcaves Mutant | -8/Materials Mutant | -7/Factory Mutant | -6/Factory Mutant | -6/Lower Caves Mutant | -6/Data Miner Mutant | -5/Proximity Caves Mutant | -5/Factory Mutant | -4/Factory Mutant | -4/Upper Caves Mutant | -4/Upper Caves Mutant | -3/Research Mutant | -2/Research Resources | -11 -10 -10 -10 -8 -7 -6 -6 -6 -5 -5 -4 -4 -4 -3 -2 ----------- Run | Yrd Mat Min Sub Mat Fac Fac Low Dat Pro Fac Fac Upp Upp Res Res Matter Collected 864 | 219 . . 41 . . 251 . . 10 . . 139 170 4 30 Remotely . | . . . . . . . . . . . . . . . . Salvage Created 30 | . . . . . . . . . . . . . . . 30 Parts 3 | . . . . . . . . . . . . . . . 3 Haulers Intercepted . | . . . . . . . . . . . . . . . . Recyclers Shooed . | . . . . . . . . . . . . . . . . Parts Field Recycled . | . . . . . . . . . . . . . . . . Retrieved Matter . | . . . . . . . . . . . . . . . . Parts Self-Destructed 13 | . . . 9 . . . . . 4 . . . . . . Prevented . | . . . . . . . . . . . . . . . . Parts Restored 1 | . . . . . . . . . . . 1 . . . . Broken 1 | . . . . . . . . . . . 1 . . . . Kills | -11 -10 -10 -10 -8 -7 -6 -6 -6 -5 -5 -4 -4 -4 -3 -2 ------- Run | Yrd Mat Min Sub Mat Fac Fac Low Dat Pro Fac Fac Upp Upp Res Res Combat Hostiles Destroyed . | . . . . . . . . . . . . . . . . Classes Destroyed 1 | . . . . . . . . . . . . . . . 1 Builder 1 | . . . . . . . . . . . . . . . 1 Best Kill Streak 1 | . . . . . . . . . . . . . . . 1 Combat Bots Only . | . . . . . . . . . . . . . . . . Max Kills in Single Turn 1 | . . . . . . . . . . . . . . . 1 Gunslinging . | . . . . . . . . . . . . . . . . Exploded . | . . . . . . . . . . . . . . . . Melee . | . . . . . . . . . . . . . . . . Uniques/NPCs Destroyed . | . . . . . . . . . . . . . . . . Combat | -11 -10 -10 -10 -8 -7 -6 -6 -6 -5 -5 -4 -4 -4 -3 -2 -------- Run | Yrd Mat Min Sub Mat Fac Fac Low Dat Pro Fac Fac Upp Upp Res Res Hostile Shots Fired 506 | . . . 2 58 13 109 . . 93 7 . 104 . 94 26 Missed 207 | . . . 2 9 8 35 . . 45 4 . 53 . 44 7 Hits 299 | . . . . 49 5 74 . . 48 3 . 51 . 50 19 Melee 4 | . . . . 1 . . . . 3 . . . . . . Projectile 295 | . . . . 48 5 74 . . 45 3 . 51 . 50 19 AOE 1 | . . . . . . . . . . . . . . 1 . Critical Strikes 10 | . . . . 1 . 2 . . . . . . . 5 2 Part Disruptions 1 | . . . . . . . . . . . . . . 1 . Damage Taken 5140 | . . . . 761 78 965 . . 710 28 . 977 . 1240 381 Core 2431 | . . . . 212 31 199 . . 639 . . 250 . 773 327 Absorbed by Shields 341 | . . . . . . . . . . 28 . 301 . 12 . Ignored by Resistances 129 | . . . . . . 71 . . 58 . . . . . . Core Remaining (%) 71 | 100 . . 100 61 95 . . . 1 100 . . 78 40 . Volleys Fired 31 | . . . . . . 3 . . . . 5 16 . 7 . Largest 1 | . . . . . . 1 . . . . 1 1 . 1 . Hottest 47 | . . . . . . 30 . . . . 47 47 . 47 . Shots Fired 31 | . . . . . . 3 . . . . 5 16 . 7 . Gun . | . . . . . . . . . . . . . . . . Cannon 28 | . . . . . . . . . . . 5 16 . 7 . Launcher 3 | . . . . . . 3 . . . . . . . . . Special . | . . . . . . . . . . . . . . . . Kinetic 28 | . . . . . . . . . . . 5 16 . 7 . Thermal . | . . . . . . . . . . . . . . . . Explosive 3 | . . . . . . 3 . . . . . . . . . Electromagnetic . | . . . . . . . . . . . . . . . . Robot Hit Streak . | . . . . . . . . . . . . . . . . Robot Miss Streak . | . . . . . . . . . . . . . . . . Penetration Max . | . . . . . . . . . . . . . . . . Secondary Targets . | . . . . . . . . . . . . . . . . Shots Hit Robots . | . . . . . . . . . . . . . . . . Core Hits 3 | . . . . . . . . . 1 . . 1 . . 1 Critical Kills . | . . . . . . . . . . . . . . . . Critical Parts Destroyed . | . . . . . . . . . . . . . . . . Critical Strikes . | . . . . . . . . . . . . . . . . Melee Attacks . | . . . . . . . . . . . . . . . . Impact . | . . . . . . . . . . . . . . . . Slashing . | . . . . . . . . . . . . . . . . Piercing . | . . . . . . . . . . . . . . . . Sneak Attacks . | . . . . . . . . . . . . . . . . Combat Hostiles . | . . . . . . . . . . . . . . . . Follow-up Attacks . | . . . . . . . . . . . . . . . . Damage Inflicted 118 | . . . . . . . . . 10 . . 91 . 5 12 Guns . | . . . . . . . . . . . . . . . . Cannons . | . . . . . . . . . . . . . . . . Explosions . | . . . . . . . . . . . . . . . . Melee . | . . . . . . . . . . . . . . . . Ramming 118 | . . . . . . . . . 10 . . 91 . 5 12 Kinetic . | . . . . . . . . . . . . . . . . Thermal . | . . . . . . . . . . . . . . . . Explosive . | . . . . . . . . . . . . . . . . Electromagnetic . | . . . . . . . . . . . . . . . . Impact . | . . . . . . . . . . . . . . . . Slashing . | . . . . . . . . . . . . . . . . Piercing . | . . . . . . . . . . . . . . . . Highest Corruption 16 | . . . . . . 4 4 4 5 . . 2 2 16 . Average Corruption 5 | . . . . . . 2 4 4 4 . . 2 2 11 . Corruption Purged . | . . . . . . . . . . . . . . . . Corruption Blocked . | . . . . . . . . . . . . . . . . Effects 15 | . . . . . . 1 . 2 2 . . . 2 8 . Message Errors 5 | . . . . . . . . 1 . . . . 1 3 . Matter Fused 3 | . . . . . . . . . 1 . . . 1 1 . Heat Flow Errors 1 | . . . . . . . . . . . . . . 1 . Energy Discharges 4 | . . . . . . . . 1 1 . . . . 2 . Data Loss (minor) 2 | . . . . . . 1 . . . . . . . 1 . Overload Shots . | . . . . . . . . . . . . . . . . Overflow Damage . | . . . . . . . . . . . . . . . . Projectiles . | . . . . . . . . . . . . . . . . Explosions . | . . . . . . . . . . . . . . . . Melee . | . . . . . . . . . . . . . . . . Knockbacks . | . . . . . . . . . . . . . . . . Impact . | . . . . . . . . . . . . . . . . Kinetic . | . . . . . . . . . . . . . . . . Secondary . | . . . . . . . . . . . . . . . . Self-Inflicted Damage 55 | . . . . . . . . . 5 . . 43 . 1 6 Shots . | . . . . . . . . . . . . . . . . Rammed 18 | . . . . . . . . . 6 . . 7 . 3 2 Targets Rammed 18 | . . . . . . . . . 6 . . 7 . 3 2 Kicked . | . . . . . . . . . . . . . . . . Crushed . | . . . . . . . . . . . . . . . . Highest Temperature 205 | . . . . . . 4 . . . . 127 162 . 205 . Average Temperature 44 | . . . . . . 3 . . . . 82 25 . 113 . Received Heat Transfer 231 | . . . . 90 . 54 . . 48 12 . 6 . 12 9 Siege Activations . | . . . . . . . . . . . . . . . . Martial Activations . | . . . . . . . . . . . . . . . . Shielding Activations . | . . . . . . . . . . . . . . . . Robots Disrupted . | . . . . . . . . . . . . . . . . Combat Hostiles . | . . . . . . . . . . . . . . . . Robots Corrupted . | . . . . . . . . . . . . . . . . Combat Hostiles . | . . . . . . . . . . . . . . . . Parts Fried . | . . . . . . . . . . . . . . . . Impact Corruptions . | . . . . . . . . . . . . . . . . Robots Melted . | . . . . . . . . . . . . . . . . Combat Hostiles . | . . . . . . . . . . . . . . . . Parts Melted . | . . . . . . . . . . . . . . . . Heat Transferred . | . . . . . . . . . . . . . . . . Parts Sabotaged . | . . . . . . . . . . . . . . . . Parts Stolen . | . . . . . . . . . . . . . . . . Parts Stripped . | . . . . . . . . . . . . . . . . Power Chain Reactions . | . . . . . . . . . . . . . . . . Alert | -11 -10 -10 -10 -8 -7 -6 -6 -6 -5 -5 -4 -4 -4 -3 -2 ------- Run | Yrd Mat Min Sub Mat Fac Fac Low Dat Pro Fac Fac Upp Upp Res Res Maximum Alert Level . | . . . . . . . . . . . . . . . . Low Security (%) 100 | 100 100 100 . 100 100 100 . . . 100 100 . . 100 100 Level 1 . | . . . . . . . . . . . . . . . . Level 2 . | . . . . . . . . . . . . . . . . Level 3 . | . . . . . . . . . . . . . . . . Level 4 . | . . . . . . . . . . . . . . . . Level 5 . | . . . . . . . . . . . . . . . . High Security . | . . . . . . . . . . . . . . . . Max Security . | . . . . . . . . . . . . . . . . Peak Influence 114 | . . . . 35 74 58 . . . 114 17 . . 30 5 Initial 114 | . . . . . 15 30 . . . 114 . . . . 2 Average 10 | . . . . 3 7 16 . . . 81 4 . . 4 . Influence Increases 860 | . . . 31 45 74 133 . . 302 27 27 165 . 51 5 Destroy 0b10 Robot/C 60 | . . . 20 . . . . . 40 . . . . . . Destroy 0b10 Robot/NC 5 | . . . . . . . . . . . . . . . 5 Destroy Leader 20 | . . . 10 . . . . . 10 . . . . . . Allied During Kill 13 | . . . 1 . . . . . 12 . . . . . . Successful Hack 65 | . . . . . 14 24 . . . 27 . . . . . Disable Machine 15 | . . . . . . . . . . . 15 . . . . Destroy Structure 37 | . . . . . . 19 . . . . 12 . . 6 . Partial Spotted 15 | . . . . . . 15 . . . . . . . . . Lose Combat Pursuer 630 | . . . . 45 60 75 . . 240 . . 165 . 45 . Influence Decreases 855 | . . . 31 10 45 197 . . 120 209 27 140 25 46 5 Entered New Map 131 | . . . . . 20 34 . . . 68 . . 6 . 3 Time Decay 499 | . . . 31 10 25 153 . . 70 40 27 90 19 32 2 Lost Part 104 | . . . . . . 10 . . 30 . . 50 . 14 . Lost Ally 20 | . . . . . . . . . 20 . . . . . . Purge Threat 101 | . . . . . . . . . . 101 . . . . . Squads Dispatched 6 | . . . . 1 . 1 . . 1 1 1 . . 1 . Investigation . | . . . . . . . . . . . . . . . . Extermination 2 | . . . . . . 1 . . . . . . . 1 . Reinforcement 3 | . . . . 1 . . . . . 1 1 . . . . Assault 1 | . . . . . . . . . 1 . . . . . . Garrison . | . . . . . . . . . . . . . . . . Intercept . | . . . . . . . . . . . . . . . . Searches Triggered . | . . . . . . . . . . . . . . . . Construction Impeded . | . . . . . . . . . . . . . . . . Haulers Reinforced . | . . . . . . . . . . . . . . . . Active Scanning Responses . | . . . . . . . . . . . . . . . . Cargo Convoy Interrupts . | . . . . . . . . . . . . . . . . Stealth | -11 -10 -10 -10 -8 -7 -6 -6 -6 -5 -5 -4 -4 -4 -3 -2 --------- Run | Yrd Mat Min Sub Mat Fac Fac Low Dat Pro Fac Fac Upp Upp Res Res Distress Signals 3 | . . . . 2 . . . . . . . . . 1 . Communications Jammed 5 | . . . . . 5 . . . . . . . . . . Distress Signals 5 | . . . . . 5 . . . . . . . . . . Times Spotted 98 | . . . 1 9 7 15 . . 30 4 1 17 . 11 3 Peak Tracking Total 12 | . . . 1 7 6 6 . . 12 3 1 6 . 10 3 Tactical Retreats 15 | . . . . 1 1 2 . . 4 . . 5 . 2 . Traps | -11 -10 -10 -10 -8 -7 -6 -6 -6 -5 -5 -4 -4 -4 -3 -2 ------- Run | Yrd Mat Min Sub Mat Fac Fac Low Dat Pro Fac Fac Upp Upp Res Res Traps Triggered 1 | . . . . . . 1 . . . . . . . . . Indirectly . | . . . . . . . . . . . . . . . . Trap Hack Attempts . | . . . . . . . . . . . . . . . . Triggered . | . . . . . . . . . . . . . . . . Disarmed . | . . . . . . . . . . . . . . . . Reprogrammed . | . . . . . . . . . . . . . . . . Reused . | . . . . . . . . . . . . . . . . Traps Extracted . | . . . . . . . . . . . . . . . . Installed . | . . . . . . . . . . . . . . . . Triggered . | . . . . . . . . . . . . . . . . Machines | -11 -10 -10 -10 -8 -7 -6 -6 -6 -5 -5 -4 -4 -4 -3 -2 ---------- Run | Yrd Mat Min Sub Mat Fac Fac Low Dat Pro Fac Fac Upp Upp Res Res Machines Disabled 1 | . . . . . . . . . . . 1 . . . . Max in Single Turn 1 | . . . . . . . . . . . 1 . . . . Machines Repaired . | . . . . . . . . . . . . . . . . Machines Dismantled . | . . . . . . . . . . . . . . . . Machines Sabotaged . | . . . . . . . . . . . . . . . . Overloaded Fab Kills . | . . . . . . . . . . . . . . . . Hacking | -11 -10 -10 -10 -8 -7 -6 -6 -6 -5 -5 -4 -4 -4 -3 -2 --------- Run | Yrd Mat Min Sub Mat Fac Fac Low Dat Pro Fac Fac Upp Upp Res Res Machines Accessed 13 | . 1 . . . 2 2 . 3 . 2 . 1 . 1 1 Terminals 6 | . 1 . . . 1 1 . . . 2 . 1 . . . Fabricators . | . . . . . . . . . . . . . . . . Repair Stations 1 | . . . . . . . . . . . . . . . 1 Recycling Units 1 | . . . . . . 1 . . . . . . . . . Scanalyzers . | . . . . . . . . . . . . . . . . Garrison Access 2 | . . . . . 1 . . . . . . . . 1 . Total Hacks 45 | . 2 . . . 5 4 . 25 . 5 . 1 . 2 1 Successful 34 | . 2 . . . 1 3 . 25 . 2 . 1 . . . Failed 11 | . . . . . 4 1 . . . 3 . . . 2 1 Catastrophic 2 | . . . . . 1 . . . . 1 . . . . . Database Lockouts . | . . . . . . . . . . . . . . . . Manual 4 | . 1 . . . . 1 . . . 2 . . . . . Terminals 13 | . 2 . . . 2 3 . . . 5 . 1 . . . Fabricators . | . . . . . . . . . . . . . . . . Repair Stations 1 | . . . . . . . . . . . . . . . 1 Recycling Units 1 | . . . . . . 1 . . . . . . . . . Scanalyzers . | . . . . . . . . . . . . . . . . Garrison Access 5 | . . . . . 3 . . . . . . . . 2 . Terminal Hacks 32 | . 1 . . . 1 2 . 25 . 2 . 1 . . . Record 8 | . . . . . 1 1 . 5 . . . 1 . . . Part Schematic 11 | . . . . . . . . 11 . . . . . . . Robot Schematic 6 | . . . . . . . . 6 . . . . . . . Prototype ID Bank 3 | . . . . . . . . 3 . . . . . . . Branch Access Points 1 | . . . . . . . . . . 1 . . . . . Unreport Threat 1 | . . . . . . . . . . 1 . . . . . Locate Traps 1 | . . . . . . 1 . . . . . . . . . Zone Layout 1 | . 1 . . . . . . . . . . . . . . Fabricator Hacks . | . . . . . . . . . . . . . . . . Repair Station Hacks . | . . . . . . . . . . . . . . . . Recycling Unit Hacks 1 | . . . . . . 1 . . . . . . . . . Retrieve Matter 1 | . . . . . . 1 . . . . . . . . . Scanalyzer . | . . . . . . . . . . . . . . . . Garrison Access Hacks . | . . . . . . . . . . . . . . . . Unauthorized Hacks 1 | . 1 . . . . . . . . . . . . . . Terminals 1 | . 1 . . . . . . . . . . . . . . Botnet 1 | . 1 . . . . . . . . . . . . . . Fabricators . | . . . . . . . . . . . . . . . . Repair Stations . | . . . . . . . . . . . . . . . . Recycling Units . | . . . . . . . . . . . . . . . . Scanalyzers . | . . . . . . . . . . . . . . . . Garrison Access . | . . . . . . . . . . . . . . . . Data Cores Recovered . | . . . . . . . . . . . . . . . . Used . | . . . . . . . . . . . . . . . . Hacking Detections 9 | . 1 . . . 2 2 . . . 2 . . . 1 1 Full Trace Events . | . . . . . . . . . . . . . . . . Feedback Events . | . . . . . . . . . . . . . . . . Feedback Blocked . | . . . . . . . . . . . . . . . . Robot Schematics Acquired 6 | . . . . . . . . 6 . . . . . . . Robots Built . | . . . . . . . . . . . . . . . . Authchips . | . . . . . . . . . . . . . . . . Time . | . . . . . . . . . . . . . . . . Total Robot Build Rating . | . . . . . . . . . . . . . . . . Part Schematics Acquired 11 | . . . . . . . . 11 . . . . . . . Parts Built . | . . . . . . . . . . . . . . . . Authchips . | . . . . . . . . . . . . . . . . Time . | . . . . . . . . . . . . . . . . Total Part Build Rating . | . . . . . . . . . . . . . . . . Part Studies Acquired . | . . . . . . . . . . . . . . . . Parts Repaired . | . . . . . . . . . . . . . . . . Time . | . . . . . . . . . . . . . . . . Parts Recycled . | . . . . . . . . . . . . . . . . Recycled Matter . | . . . . . . . . . . . . . . . . Retrieved Matter . | . . . . . . . . . . . . . . . . Retrieved Components . | . . . . . . . . . . . . . . . . Parts Scanalyzed . | . . . . . . . . . . . . . . . . Part Schematics Acquired . | . . . . . . . . . . . . . . . . Parts Damaged . | . . . . . . . . . . . . . . . . Bothacking | -11 -10 -10 -10 -8 -7 -6 -6 -6 -5 -5 -4 -4 -4 -3 -2 ------------ Run | Yrd Mat Min Sub Mat Fac Fac Low Dat Pro Fac Fac Upp Upp Res Res Used RIF Installer . | . . . . . . . . . . . . . . . . Robots Hacked . | . . . . . . . . . . . . . . . . Non-combat . | . . . . . . . . . . . . . . . . Combat . | . . . . . . . . . . . . . . . . Robot Hacks Applied . | . . . . . . . . . . . . . . . . Relay Couplers Released . | . . . . . . . . . . . . . . . . Fabnet Peak Effective % . | . . . . . . . . . . . . . . . . Robots Rewired . | . . . . . . . . . . . . . . . . Allies Hacked . | . . . . . . . . . . . . . . . . Hacks Repelled . | . . . . . . . . . . . . . . . . Allies | -11 -10 -10 -10 -8 -7 -6 -6 -6 -5 -5 -4 -4 -4 -3 -2 -------- Run | Yrd Mat Min Sub Mat Fac Fac Low Dat Pro Fac Fac Upp Upp Res Res Total Allies 3 | . . 2 . . . . . . 1 . . . . . . Largest Group 2 | . . 2 2 . . . . . 1 . . . . . . Highest-Rated Group 96 | . . 50 54 . . . . . 96 . . . . . . Highest-Rated Ally 96 | . . 31 31 . . . . . 96 . . . . . . Total Orders . | . . . . . . . . . . . . . . . . Ally Attacks 11 | . . . 8 . . . . . 3 . . . . . . Total Damage 291 | . . . 152 . . . . . 139 . . . . . . Kills 4 | . . . 2 . . . . . 2 . . . . . . Allies Corrupted . | . . . . . . . . . . . . . . . . Allies Melted 1 | . . . . . . . . . 1 . . . . . . Intel | -11 -10 -10 -10 -8 -7 -6 -6 -6 -5 -5 -4 -4 -4 -3 -2 ------- Run | Yrd Mat Min Sub Mat Fac Fac Low Dat Pro Fac Fac Upp Upp Res Res Active Infowar (turns) 1609 | . . . . . 77 501 8 97 194 . 111 292 73 207 49 Optics 673 | . . . . . . . . . . . 52 292 73 207 49 Seismic 501 | . . . . . . 202 8 97 194 . . . . . . Jamming 932 | . . . . . 77 495 . . . . 111 249 . . . Robot Analysis Total . | . . . . . . . . . . . . . . . . Derelict Logs Recovered 3 | . . . . . . . . . 2 . . 1 . . . Drone Launches . | . . . . . . . . . . . . . . . . Drone Recoveries . | . . . . . . . . . . . . . . . . Exploration | -11 -10 -10 -10 -8 -7 -6 -6 -6 -5 -5 -4 -4 -4 -3 -2 ------------- Run | Yrd Mat Min Sub Mat Fac Fac Low Dat Pro Fac Fac Upp Upp Res Res Turns Passed 2934 | 91 248 194 359 132 181 507 8 97 267 97 129 292 73 207 52 Spaces Moved 3250 | 57 152 121 225 100 212 670 6 85 450 150 116 443 68 312 83 Core 519 | 12 . . . . . 1 . . 136 44 . . . 243 83 Treads 585 | 45 152 121 225 42 . . . . . . . . . . . Legs . | . . . . . . . . . . . . . . . . Wheels 165 | . . . . 58 107 . . . . . . . . . . Hover 1331 | . . . . . . 529 . . . 106 116 443 68 69 . Flight 650 | . . . . . 105 140 6 85 314 . . . . . . Fastest Speed 34 | 50 160 160 160 100 34 34 115 115 35 50 55 55 106 50 50 Average Speed 81 | 142 160 160 160 125 68 58 115 115 57 54 91 55 106 59 50 Slowest Speed 200 | 160 160 160 160 160 100 200 115 115 115 60 106 106 106 106 50 Overloaded Moves . | . . . . . . . . . . . . . . . . Propulsion Burnouts . | . . . . . . . . . . . . . . . . Robots Hopped . | . . . . . . . . . . . . . . . . Potential Cave-ins 10 | . . . . . . . . . . . . 10 . . . Cave-ins Triggered 1 | . . . . . . . . . . . . 1 . . . Exploration Rate (%) 24 | 5 27 30 17 17 7 24 1 70 77 6 7 75 11 16 4 Regions Visited 15 Branch Regions 7 Pre-discovered Areas . | . . . . . . . . . . . . . . . . Known Exits Taken 5 | . . . . . . 1 1 1 . . 1 1 . . . Unknown Exits Taken 10 | 1 1 1 1 1 1 . . . 1 1 . . 1 1 . Scrap Searched 6 | . . . . . . . . . 2 . . 1 3 . . Spaces Dug 33 | . . . . . . 7 . . . . 6 17 . 3 . Terrain Destroyed 45 | . . . . . . 19 . . . . 6 17 . 3 . Melee . | . . . . . . . . . . . . . . . . Projectile 26 | . . . . . . . . . . . 6 17 . 3 . AOE 19 | . . . . . . 19 . . . . . . . . . Terrain Rammed . | . . . . . . . . . . . . . . . . Walls Destroyed . | . . . . . . . . . . . . . . . . Machines Disabled . | . . . . . . . . . . . . . . . . Actions | -11 -10 -10 -10 -8 -7 -6 -6 -6 -5 -5 -4 -4 -4 -3 -2 --------- Run | Yrd Mat Min Sub Mat Fac Fac Low Dat Pro Fac Fac Upp Upp Res Res Total 3505 | 64 157 122 224 106 249 780 7 84 456 164 133 473 68 324 94 Wait 119 | . 5 2 . 1 18 77 . . . 3 1 8 . 3 1 Move 3235 | 56 151 120 224 99 211 669 5 84 449 149 115 442 67 311 83 Hop . | . . . . . . . . . . . . . . . . Pick Up 38 | 2 1 . . 2 7 11 . . . 5 5 . 1 . 4 Fast Attach 10 | 6 . . . . . 1 . . . 2 . . . . 1 Attach 35 | . . . . 4 8 11 1 . . 4 7 . . . . Detach 7 | . . . . . 3 2 1 . 1 . . . . . . Swap 5 | . . . . . . 5 . . . . . . . . . Drop 7 | . . . . . 2 1 . . . 1 . . . . 3 Fire 31 | . . . . . . 3 . . . . 5 16 . 7 . Melee . | . . . . . . . . . . . . . . . . Ram 18 | . . . . . . . . . 6 . . 7 . 3 2 Kick . | . . . . . . . . . . . . . . . . Crush . | . . . . . . . . . . . . . . . . Escape Stasis . | . . . . . . . . . . . . . . . . Rewire . | . . . . . . . . . . . . . . . . Trap . | . . . . . . . . . . . . . . . . Miscellaneous . | . . . . . . . . . . . . . . . . Route ------- -11/Scrapyard -10/Materials (discovered 2 exits: [*Mat] / [*Min]) -10/Mines -10/Subcaves -8/Materials -7/Factory -6/Factory (discovered 2 exits: *Low / *Ext) -6/Lower Caves -6/Data Miner -5/Proximity Caves -5/Factory (discovered 3 exits: [*Fac] / Upp x2) -4/Factory -4/Upper Caves -4/Upper Caves -3/Research -2/Research History --------- Turn | Location | Event 28 | -11/Scrapyard | Discovered new exit (range 15) 92 | -11/Scrapyard | Entered Materials 161 | -10/Materials | Discovered new exit (range 16) 281 | -10/Materials | Discovered new exit (range 6) 302 | -10/Materials | Build established: Mutant 340 | -10/Materials | Entered Mines 396 | -10/Mines | Met a Derelict bent on vengeance 518 | -10/Mines | Discovered new exit (range 8) 534 | -10/Mines | Entered Subcaves 534 | -10/Subcaves | Accompanied by 2 allies 540 | -10/Subcaves | Led the pair of lost Derelicts to an unsafe place 848 | -10/Subcaves | Shifting Twisted Machinery released Battle Rifle 875 | -10/Subcaves | Discovered new exit (range 10) 893 | -10/Subcaves | Entered Materials 893 | -8/Materials | Evolved 4 slots: Propulsion x1, Utility x3 1013 | -8/Materials | Lost 6 parts (1p3n2w) 1021 | -8/Materials | Discovered new exit (range 5) 1025 | -8/Materials | Entered Factory 1025 | -7/Factory | Evolved 2 slots: Power x1, Utility x1 1202 | -7/Factory | Discovered new exit (range 7) 1206 | -7/Factory | Entered another Factory area 1206 | -6/Factory | Evolved 2 slots: Propulsion x1, Utility x1 1517 | -6/Factory | Discovered new exit (range 12) 1522 | -6/Factory | Identified exit to Extension 1704 | -6/Factory | Discovered new exit (range 15) 1712 | -6/Factory | Identified exit to Lower Caves 1713 | -6/Factory | Entered Lower Caves 1714 | -6/Lower Caves | A Derelict revealed a hidden shortcut to meet someone special 1720 | -6/Lower Caves | Identified exit to Data Miner 1721 | -6/Lower Caves | Entered Data Miner 1721 | -6/Data Miner | Discovered new exit (range 6) 1743 | -6/Data Miner | Lost 8 parts (1p3n3u1w) 1743 | -6/Data Miner | Met Data Miner 1788 | -6/Data Miner | Received God Mode back door access code from Data Miner 1812 | -6/Data Miner | Identified exit to Proximity Caves 1818 | -6/Data Miner | Entered Proximity Caves 1824 | -5/Proximity Caves | Learned location of 1 exit from Upper Caves 1861 | -5/Proximity Caves | Spotted B-75 Beast 1939 | -5/Proximity Caves | Attracted the attention of an 0b10 checkpoint 1969 | -5/Proximity Caves | Learned Factory terminal intel 2020 | -5/Proximity Caves | Unaware initiated a cargo recovery operation 2025 | -5/Proximity Caves | Core integrity fell below 50% 2046 | -5/Proximity Caves | Attracted the attention of an 0b10 outpost 2052 | -5/Proximity Caves | Escorted by Enhanced Grunt 2054 | -5/Proximity Caves | Lost 3 parts (1n2u) 2056 | -5/Proximity Caves | Core integrity fell below 20% 2082 | -5/Proximity Caves | Discovered new exit (range 7) 2085 | -5/Proximity Caves | Entered Factory 2085 | -5/Factory | Evolved 2 slots: Power x1, Propulsion x1 2086 | -5/Factory | Loaded intel: 26 terminal locations 2165 | -5/Factory | Identified exit to Upper Caves 2172 | -5/Factory | Discovered new exit (range 16) 2182 | -5/Factory | Entered another Factory area 2182 | -4/Factory | Evolved 2 slots: Propulsion x1, Utility x1 2308 | -4/Factory | Discovered new exit (range 3) 2310 | -4/Factory | Identified exit to Upper Caves 2311 | -4/Factory | Entered Upper Caves 2312 | -4/Upper Caves | Identified exit to Upper Caves 2424 | -4/Upper Caves | Spotted B-86 Titan 2465 | -4/Upper Caves | Learned Research stockpile data 2600 | -4/Upper Caves | Crushed by falling debris 2603 | -4/Upper Caves | Entered another Upper Caves area 2631 | -4/Upper Caves | Lost 5 parts (1p1n3u) 2656 | -4/Upper Caves | Discovered new exit (range 20) 2676 | -4/Upper Caves | Entered Research 2676 | -3/Research | Evolved 2 slots: Propulsion x2 2746 | -3/Research | Spotted B-86 Titan 2768 | -3/Research | System corruption reached 10% 2786 | -3/Research | Lost 6 parts (2p1n2u1w) 2848 | -3/Research | Spotted B-86 Titan 2851 | -3/Research | Core integrity fell below 50% 2878 | -3/Research | Discovered new exit (range 11) 2883 | -3/Research | Entered another Research area 2883 | -2/Research | Evolved 2 slots: Propulsion x2 2935 | -2/Research | Self-destructed Last Messages --------------- 02910_ Identified Exp. Power Amplifier. 02911_ Dropped Exp. Power Amplifier. 02912_ Dropped Adv. Power Amplifier. 02913_ Acquired Exp. Power Amplifier. 02914_ Dropped Adv. Power Amplifier. 02915_ Acquired Exp. Power Amplifier. 02918_ Penetrated by Slug. 02921_ ALERT: All DSF locations entering lockdown mode. 02921_ Slug penetrates Wall. 02926_ Penetrated by Slug. 02926_ System Shield destroyed. 02926_ Slammed into H-88 Terminator. 02927_ Slug penetrates Wall. 02930_ Penetrated by Slug. 02930_ Slug penetrates Wall. 02932_ Enh. Optical Array destroyed. 02934_ Slammed into U-05 Engineer. 02934_ U-05 Engineer destroyed. 02935_ Acquired 30 matter. [Achievement: Just Browsing] Map ----- +----------------------------------------------------+ | ?????????????????????????????????????????????????? | | ?????????????????????????????????????????????????? | | ?????????????????????????????????????????????????? | | ?????????????????????????????????????????????????? | | ???????????????????????????????????????########### | | ???????????????????????????????????????# ! # | | ??????????????#############????????????# # | | ??????????????? #????????????# # | | ????????????????? #????????????# ] # | | ?????????????????? #????????????# !! # | | ???????????????????? #????????????# # | | ????????????######???# #????????????# # | | ????????????# ??# #????????????# # | | ????????????# ?# ####################+### | | ????????????# # | | ????????????# | | ?????????????????????# | | ?????????????????????# k | | ?????????????????????#### ######+### ########## | | ????????????????????????# # # # # | | ????????????????????????# # # # # | | ????????????????????????# # # # "" # | | ????????????????????????#=# !!! + #""" # | | ????????????????????????#!# !! # #"R # | | ????????????????????????# # !! # #""" + | | ????????????????????????#@# ]## ##""" # | | ????????????????????????# # ## ## # | | ????????????????????????# # ## ## # | | ????????????????????????# ########### ########### | | ????????????????????????#+#?????????# #?????????# | | ????????????????????????? ?????????? ?????????# | | ????????????????????????? ?????????? ?????????# | | ????????????????????????? ?????????? ????????## | | ????????????????????????? ?????????? ???????# | | ????????????????????????? ????????? ???????# | | ????????????????????????? ????????? ???????# | | ?????????????????????????#?????????# ##??????# | | ???????????????????????????????????# #???????# | | ???????????????????????????????????# #???????# | | ???????????????????????????????????? #???????# | | ???????????????????????????????????? #???????# | | ???????????????????????????????????? ???????## | | ?????????????????????????????????????????????????? | | ?????????????????????????????????????????????????? | | ?????????????????????????????????????????????????? | | ?????????????????????????????????????????????????? | | ?????????????????????????????????????????????????? | | ?????????????????????????????????????????????????? | | ?????????????????????????????????????????????????? | | ?????????????????????????????????????????????????? | +----------------------------------------------------+ Best States ------------- Heat Dissipation 49 Energy Generation 68 Energy Capacity 500 Matter Stores 300 Matter Capacity 300 Sight Range 22 Terrain Scan Density 10 Jamming Range 16 Power Amplification 20 Armor Coverage 225 Resistance: KI 20 Resistance: EX 25 Evasion (%) 63 Launcher Accuracy 20 Recoil Reduction 2 Defensive Hacking 10 Item Schematics ----------------- Combat Drone Bay | -6/Data Miner | Free Lgt. Regenerative Plating | -6/Data Miner | Free Enh. Armored Leg | -6/Data Miner | Free Prc. Energy Filter | -6/Data Miner | Free Imp. KE Penetrator | -6/Data Miner | Free Imp. Antigrav System | -6/Data Miner | Free Adv. Cryofiber Web | -6/Data Miner | Free Phase Gun | -6/Data Miner | Free Adv. Field Recycling Unit | -6/Data Miner | Free Graphene Brace | -6/Data Miner | Free Antigrav Array | -6/Data Miner | Free Robot Schematics ------------------ R-10 Processor | -6/Data Miner | Free M-22 Extractor | -6/Data Miner | Free L-41 Fighter | -6/Data Miner | Free B-60 Warrior | -6/Data Miner | Free Y-64 Sentinel | -6/Data Miner | Free E-15 Imp | -6/Data Miner | Free Fabricated ------------ Nothing Repaired ---------- Nothing Studied --------- None Alien Tech Used ----------------- None Achievements -------------- Just Browsing No Signal Challenges ------------ None Game ------ Seed DirtyDeliveryNetwork Manual? 0 Play Time 01:05:10 Cumulative 35.8 hours Start 2026.01.19 @ 12:52:51 End 2026.01.19 @ 13:57:43 Sessions 1 Manual Loads 0 Difficulty Rogue Special Mode None Game No. 36 Rogue 36 Adventurer 0 Explorer 0 Win Type - Total 1 Types 1/0/0/0/0/0/0/0/0/0 Lore% 29 Gallery% 25 Achievement% 26 Wizard Run 0 Options --------- Layout 0 ASCII 1 Keyboard 0 Movement Mouse Keybinds 0 Fullscreen 2 Font 36/Smallcaps Map View 76x50 Zoom Use 0% Tactical HUD 1 Map Filters NONE Filters NONE Steam 1 RUN: 13857dee-301f-4cb5-a53e-a65f89110bef